[Event "January 9 Late 2024"]
[Site "https://www.chess.com"]
[Date "2024.01.10"]
[Round "8"]
[White "Heberla, Bartlomiej"]
[Black "Toktomushev, Teimur"]
[Result "1-0"]
[Board "106"]
[TimeControl "180+1"]
[WhiteFideId "1115120"]
[BlackFideId "14176726"]
[WhiteElo "2667"]
[BlackElo "2434"]
[WhiteTeam "POL"]
[BlackTeam "UKR"]
[WhiteClock "0:00:12"]
[BlackClock "0:00:10"]

1. d4 {[%clk 0:03:00]}  d5 {[%clk 0:02:59]} 2. c4 {[%clk 0:03:00]}  e6 {[%clk 0:02:59]} 3. Nc3 {[%clk 0:03:00]}  Nf6 {[%clk 0:02:59]} 4. cxd5 {[%clk 0:03:00]}  exd5 {[%clk 0:03:00]} 5. Bg5 {[%clk 0:02:59]}  Be7 {[%clk 0:03:00]} 6. e3 {[%clk 0:03:00]}  c6 {[%clk 0:02:59]} 7. Bd3 {[%clk 0:03:00]}  Nbd7 {[%clk 0:02:58]} 8. h3 {[%clk 0:02:59]}  Nf8 {[%clk 0:02:58]} 9. Nf3 {[%clk 0:02:55]}  Ne6 {[%clk 0:02:58]} 10. Bh4 {[%clk 0:02:54]}  g6 {[%clk 0:02:55]} 11. Bg3 {[%clk 0:02:49]}  Ng7 {[%clk 0:02:52]} 12. O-O {[%clk 0:02:47]}  Bf5 {[%clk 0:02:50]} 13. Be5 {[%clk 0:02:35]}  O-O {[%clk 0:02:50]} 14. Rb1 {[%clk 0:02:28]}  a5 {[%clk 0:02:39]} 15. Re1 {[%clk 0:02:18]}  Bxd3 {[%clk 0:02:24]} 16. Qxd3 {[%clk 0:02:19]}  Nf5 {[%clk 0:02:25]} 17. a3 {[%clk 0:02:15]}  a4 {[%clk 0:01:47]} 18. Qc2 {[%clk 0:01:49]}  Qa5 {[%clk 0:01:24]} 19. Nd2 {[%clk 0:01:44]}  Nd7 {[%clk 0:01:21]} 20. Bh2 {[%clk 0:01:43]}  Bd6 {[%clk 0:01:18]} 21. Bxd6 {[%clk 0:01:40]}  Nxd6 {[%clk 0:01:19]} 22. e4 {[%clk 0:01:36]}  dxe4 {[%clk 0:01:17]} 23. Ndxe4 {[%clk 0:01:36]}  Nxe4 {[%clk 0:01:02]} 24. Rxe4 {[%clk 0:01:37]}  Rfe8 {[%clk 0:00:59]} 25. Rbe1 {[%clk 0:01:36]}  Rxe4 {[%clk 0:00:56]} 26. Rxe4 {[%clk 0:01:36]}  Nf6 {[%clk 0:00:50]} 27. Re7 {[%clk 0:01:23]}  Qb6 {[%clk 0:00:29]} 28. Qd2 {[%clk 0:01:24]}  Rd8 {[%clk 0:00:24]} 29. Qf4 {[%clk 0:01:17]}  Qxd4 {[%clk 0:00:19]} 30. Qxd4 {[%clk 0:01:18]}  Rxd4 {[%clk 0:00:20]} 31. Rxb7 {[%clk 0:01:18]}  Nd5 {[%clk 0:00:09]} 32. Nxd5 {[%clk 0:00:57]}  cxd5 {[%clk 0:00:10]} 33. Rb4 {[%clk 0:00:54]}  Rd1+ {[%clk 0:00:03]} 34. Kh2 {[%clk 0:00:54]}  Rd2 {[%clk 0:00:04]} 35. Kg3 {[%clk 0:00:54]}  Kf8 {[%clk 0:00:03]} 36. Kf3 {[%clk 0:00:55]}  Ke7 {[%clk 0:00:02]} 37. Ke3 {[%clk 0:00:55]}  Rc2 {[%clk 0:00:03]} 38. g4 {[%clk 0:00:47]}  Kd6 {[%clk 0:00:03]} 39. g5 {[%clk 0:00:26]}  Kc5 {[%clk 0:00:03]} 40. Rf4 {[%clk 0:00:26]}  Rxb2 {[%clk 0:00:02]} 41. Rxf7 {[%clk 0:00:27]}  Rb3+ {[%clk 0:00:03]} 42. Kf4 {[%clk 0:00:25]}  Rxh3 {[%clk 0:00:02]} 43. Ke5 {[%clk 0:00:26]}  Rxa3 {[%clk 0:00:02]} 44. Rc7+ {[%clk 0:00:26]}  Kb4 {[%clk 0:00:03]} 45. Rxh7 {[%clk 0:00:27]}  Rf3 {[%clk 0:00:02]} 46. Rb7+ {[%clk 0:00:25]}  Ka3 {[%clk 0:00:02]} 47. Rb6 {[%clk 0:00:22]}  Rxf2 {[%clk 0:00:02]} 48. Rxg6 {[%clk 0:00:23]}  Rd2 {[%clk 0:00:01]} 49. Rb6 {[%clk 0:00:18]}  Ka2 {[%clk 0:00:01]} 50. g6 {[%clk 0:00:19]}  a3 {[%clk 0:00:02]} 51. Kf5 {[%clk 0:00:10]}  Rf2+ {[%clk 0:00:02]} 52. Ke6 {[%clk 0:00:09]}  d4 {[%clk 0:00:01]} 53. g7 {[%clk 0:00:06]}  Rg2 {[%clk 0:00:02]} 54. Kf7 {[%clk 0:00:07]}  d3 {[%clk 0:00:02]} 55. Rg6 {[%clk 0:00:07]}  Rxg6 {[%clk 0:00:02]} 56. Kxg6 {[%clk 0:00:08]}  d2 {[%clk 0:00:02]} 57. g8=Q+ {[%clk 0:00:08]}  Kb1 {[%clk 0:00:03]} 58. Qb3+ {[%clk 0:00:08]}  Kc1 {[%clk 0:00:04]} 59. Qxa3+ {[%clk 0:00:08]}  Kb1 {[%clk 0:00:04]} 60. Qb3+ {[%clk 0:00:08]}  Kc1 {[%clk 0:00:05]} 61. Qc3+ {[%clk 0:00:09]}  Kd1 {[%clk 0:00:06]} 62. Kf5 {[%clk 0:00:09]}  Ke1 {[%clk 0:00:07]} 63. Qe5+ {[%clk 0:00:10]}  Kd1 {[%clk 0:00:06]} 64. Ke4 {[%clk 0:00:10]}  Kc1 {[%clk 0:00:07]} 65. Qc3+ {[%clk 0:00:10]}  Kd1 {[%clk 0:00:08]} 66. Ke3 {[%clk 0:00:10]}  Ke1 {[%clk 0:00:09]} 67. Qxd2+ {[%clk 0:00:11]}  Kf1 {[%clk 0:00:10]} 68. Qf2# {[%clk 0:00:12]} 1-0

[Event "January 9 Late 2024"]
[Site "https://www.chess.com"]
[Date "2024.01.09"]
[Round "8"]
[White "Figorito, Nick"]
[Black "Yang, Kevin"]
[Result "0-1"]
[Board "109"]
[TimeControl "180+1"]
[WhiteFideId "30923689"]
[BlackFideId "30908485"]
[WhiteElo "2406"]
[BlackElo "2600"]
[WhiteTeam "USA"]
[BlackTeam "USA"]
[WhiteClock "0:00:04"]
[BlackClock "0:00:09"]

1. Nf3 {[%clk 0:03:00]}  Nf6 {[%clk 0:02:58]} 2. g3 {[%clk 0:03:01]}  b5 {[%clk 0:02:52]} 3. Bg2 {[%clk 0:03:01]}  Bb7 {[%clk 0:02:52]} 4. O-O {[%clk 0:03:02]}  a6 {[%clk 0:02:50]} 5. d4 {[%clk 0:03:01]}  e6 {[%clk 0:02:49]} 6. a4 {[%clk 0:03:00]}  b4 {[%clk 0:02:39]} 7. c4 {[%clk 0:02:56]}  a5 {[%clk 0:02:36]} 8. d5 {[%clk 0:02:40]}  exd5 {[%clk 0:02:23]} 9. Nh4 {[%clk 0:02:40]}  g6 {[%clk 0:02:10]} 10. cxd5 {[%clk 0:02:35]}  Bg7 {[%clk 0:02:09]} 11. Bf4 {[%clk 0:02:22]}  d6 {[%clk 0:02:01]} 12. e4 {[%clk 0:02:01]}  O-O {[%clk 0:01:55]} 13. Nd2 {[%clk 0:02:01]}  Nh5 {[%clk 0:01:49]} 14. Be3 {[%clk 0:02:00]}  Bxb2 {[%clk 0:01:46]} 15. Rb1 {[%clk 0:02:01]}  Bf6 {[%clk 0:01:39]} 16. Nf5 {[%clk 0:01:57]}  Ba6 {[%clk 0:01:21]} 17. Re1 {[%clk 0:01:53]}  Bc3 {[%clk 0:01:11]} 18. g4 {[%clk 0:01:25]}  Nf6 {[%clk 0:00:56]} 19. Nd4 {[%clk 0:01:20]}  Nfd7 {[%clk 0:00:48]} 20. N2f3 {[%clk 0:01:12]}  Nc5 {[%clk 0:00:42]} 21. Bh6 {[%clk 0:01:08]}  Re8 {[%clk 0:00:41]} 22. Qc2 {[%clk 0:00:58]}  Bd3 {[%clk 0:00:40]} 23. Qa2 {[%clk 0:00:55]}  Rxe4 {[%clk 0:00:30]} 24. Rxe4 {[%clk 0:00:48]}  Bxe4 {[%clk 0:00:31]} 25. Re1 {[%clk 0:00:36]}  Qf6 {[%clk 0:00:26]} 26. Bg5 {[%clk 0:00:28]}  Qg7 {[%clk 0:00:25]} 27. Rd1 {[%clk 0:00:15]}  h6 {[%clk 0:00:21]} 28. Be3 {[%clk 0:00:15]}  Nbd7 {[%clk 0:00:17]} 29. Nc6 {[%clk 0:00:14]}  b3 {[%clk 0:00:14]} 30. Qa3 {[%clk 0:00:13]}  Bb2 {[%clk 0:00:11]} 31. Bd4 {[%clk 0:00:05]}  Bxa3 {[%clk 0:00:11]} 32. Bxg7 {[%clk 0:00:05]}  Kxg7 {[%clk 0:00:12]} 33. Nfd4 {[%clk 0:00:02]}  Bxg2 {[%clk 0:00:11]} 34. Kxg2 {[%clk 0:00:03]}  b2 {[%clk 0:00:10]} 35. Rb1 {[%clk 0:00:03]}  Re8 {[%clk 0:00:10]} 36. Nxa5 {[%clk 0:00:03]}  Nb6 {[%clk 0:00:04]} 37. Nc2 {[%clk 0:00:03]}  Ra8 {[%clk 0:00:02]} 38. Nxa3 {[%clk 0:00:02]}  Rxa5 {[%clk 0:00:02]} 39. Rxb2 {[%clk 0:00:03]}  Rxa4 {[%clk 0:00:03]} 40. Nb5 {[%clk 0:00:03]}  Rxg4+ {[%clk 0:00:03]} 41. Kf1 {[%clk 0:00:03]}  Rg5 {[%clk 0:00:03]} 42. Nxc7 {[%clk 0:00:03]}  Nxd5 {[%clk 0:00:04]} 43. Nxd5 {[%clk 0:00:03]}  Rxd5 {[%clk 0:00:05]} 44. Rc2 {[%clk 0:00:03]}  Rd4 {[%clk 0:00:05]} 45. Kg2 {[%clk 0:00:03]}  Ne6 {[%clk 0:00:05]} 46. Ra2 {[%clk 0:00:03]}  g5 {[%clk 0:00:06]} 47. Ra7 {[%clk 0:00:04]}  Kg6 {[%clk 0:00:06]} 48. Rd7 {[%clk 0:00:04]}  Nf4+ {[%clk 0:00:07]} 49. Kf3 {[%clk 0:00:05]}  Rd3+ {[%clk 0:00:07]} 50. Ke4 {[%clk 0:00:05]}  d5+ {[%clk 0:00:08]} 51. Ke5 {[%clk 0:00:05]}  f6+ {[%clk 0:00:09]} 52. Kd6 {[%clk 0:00:05]}  Rd2 {[%clk 0:00:09]} 53. Rd8 {[%clk 0:00:03]}  d4 {[%clk 0:00:09]} 54. Rg8+ {[%clk 0:00:04]}  Kh5 {[%clk 0:00:10]} 55. Rf8 {[%clk 0:00:04]}  Rxf2 {[%clk 0:00:10]} 56. Rxf6 {[%clk 0:00:04]}  d3 {[%clk 0:00:11]} 57. Kc5 {[%clk 0:00:03]}  d2 {[%clk 0:00:10]} 58. Rd6 {[%clk 0:00:04]}  Rxh2 {[%clk 0:00:09]} 59. Kc4 {[%clk 0:00:04]}  g4 {[%clk 0:00:08]} 60. Kc3 {[%clk 0:00:04]}  g3 {[%clk 0:00:09]} 61. Rxd2 {[%clk 0:00:04]}  Rxd2 {[%clk 0:00:09]} 62. Kxd2 {[%clk 0:00:04]}  g2 {[%clk 0:00:09]} 0-1

[Event "January 9 Late 2024"]
[Site "https://www.chess.com"]
[Date "2024.01.09"]
[Round "8"]
[White "Filipovic, Slobodan J"]
[Black "Hajiyev, Kanan"]
[Result "0-1"]
[Board "116"]
[TimeControl "180+1"]
[WhiteFideId "939633"]
[BlackFideId "13404148"]
[WhiteElo "2360"]
[BlackElo "2541"]
[WhiteTeam "SRB"]
[BlackTeam "AZE"]
[WhiteClock "0:00:23"]
[BlackClock "0:00:23"]

1. c4 {[%clk 0:03:00]}  c6 {[%clk 0:03:00]} 2. Nc3 {[%clk 0:02:57]}  d5 {[%clk 0:03:01]} 3. e3 {[%clk 0:02:56]}  Nf6 {[%clk 0:03:00]} 4. Nf3 {[%clk 0:02:57]}  g6 {[%clk 0:03:01]} 5. d4 {[%clk 0:02:52]}  Bg7 {[%clk 0:03:02]} 6. h3 {[%clk 0:02:51]}  O-O {[%clk 0:03:02]} 7. Bd3 {[%clk 0:02:50]}  c5 {[%clk 0:03:00]} 8. dxc5 {[%clk 0:02:29]}  dxc4 {[%clk 0:02:59]} 9. Bxc4 {[%clk 0:02:28]}  Qa5 {[%clk 0:02:59]} 10. Qb3 {[%clk 0:02:22]}  Qxc5 {[%clk 0:02:47]} 11. e4 {[%clk 0:02:18]}  Nc6 {[%clk 0:02:43]} 12. Be3 {[%clk 0:02:18]}  Qb4 {[%clk 0:02:43]} 13. Ng5 {[%clk 0:02:09]}  Qxb3 {[%clk 0:02:42]} 14. Bxb3 {[%clk 0:02:09]}  h6 {[%clk 0:02:35]} 15. Nf3 {[%clk 0:02:06]}  Na5 {[%clk 0:02:35]} 16. e5 {[%clk 0:01:43]}  Nxb3 {[%clk 0:02:29]} 17. exf6 {[%clk 0:01:43]}  Nxa1 {[%clk 0:02:27]} 18. fxg7 {[%clk 0:01:43]}  Rd8 {[%clk 0:02:24]} 19. Bxh6 {[%clk 0:01:37]}  Nc2+ {[%clk 0:02:19]} 20. Ke2 {[%clk 0:01:36]}  Bf5 {[%clk 0:02:19]} 21. Nh4 {[%clk 0:01:29]}  Bd3+ {[%clk 0:02:06]} 22. Kf3 {[%clk 0:01:29]}  f6 {[%clk 0:02:01]} 23. Rd1 {[%clk 0:01:10]}  g5 {[%clk 0:01:43]} 24. Rxd3 {[%clk 0:01:01]}  Rxd3+ {[%clk 0:01:43]} 25. Ke2 {[%clk 0:01:01]}  Rd7 {[%clk 0:01:37]} 26. Nf5 {[%clk 0:00:56]}  Kh7 {[%clk 0:01:30]} 27. f4 {[%clk 0:00:53]}  e6 {[%clk 0:01:16]} 28. Ne4 {[%clk 0:00:47]}  Nd4+ {[%clk 0:00:46]} 29. Nxd4 {[%clk 0:00:45]}  Rxd4 {[%clk 0:00:46]} 30. Nxf6+ {[%clk 0:00:43]}  Kxh6 {[%clk 0:00:47]} 31. fxg5+ {[%clk 0:00:39]}  Kxg7 {[%clk 0:00:45]} 32. Ke3 {[%clk 0:00:33]}  e5 {[%clk 0:00:38]} 33. Ng4 {[%clk 0:00:29]}  Rxg4 {[%clk 0:00:37]} 34. hxg4 {[%clk 0:00:30]}  Kg6 {[%clk 0:00:36]} 35. Ke4 {[%clk 0:00:30]}  Re8 {[%clk 0:00:36]} 36. g3 {[%clk 0:00:27]}  Kxg5 {[%clk 0:00:36]} 37. b4 {[%clk 0:00:27]}  b5 {[%clk 0:00:35]} 38. a4 {[%clk 0:00:28]}  bxa4 {[%clk 0:00:36]} 39. b5 {[%clk 0:00:29]}  a3 {[%clk 0:00:36]} 40. b6 {[%clk 0:00:29]}  axb6 {[%clk 0:00:36]} 41. Kd5 {[%clk 0:00:29]}  a2 {[%clk 0:00:36]} 42. Kc6 {[%clk 0:00:29]}  a1=Q {[%clk 0:00:36]} 43. Kd7 {[%clk 0:00:30]}  Qa8 {[%clk 0:00:31]} 44. Kd6 {[%clk 0:00:28]}  e4 {[%clk 0:00:24]} 45. Kc7 {[%clk 0:00:26]}  Re6 {[%clk 0:00:23]} 46. Kd7 {[%clk 0:00:23]}  Qc6+ {[%clk 0:00:23]} 0-1

[Event "January 9 Late 2024"]
[Site "https://www.chess.com"]
[Date "2024.01.09"]
[Round "8"]
[White "Coca Cubillos, Jesus Alberto"]
[Black "Lemos, Dawton Almino"]
[Result "0-1"]
[Board "117"]
[TimeControl "180+1"]
[WhiteFideId "4462912"]
[BlackFideId "2146797"]
[WhiteElo "2524"]
[BlackElo "2343"]
[WhiteTeam "COL"]
[BlackTeam "BRA"]
[WhiteClock "0:01:45"]
[BlackClock "0:00:07"]

1. f4 {[%clk 0:03:00]}  d5 {[%clk 0:02:49]} 2. Nf3 {[%clk 0:03:00]}  Nf6 {[%clk 0:02:49]} 3. e3 {[%clk 0:03:00]}  g6 {[%clk 0:02:42]} 4. d4 {[%clk 0:03:01]}  Bg7 {[%clk 0:02:42]} 5. c3 {[%clk 0:03:02]}  O-O {[%clk 0:02:39]} 6. Bd3 {[%clk 0:03:02]}  c5 {[%clk 0:02:38]} 7. Nbd2 {[%clk 0:03:02]}  Nc6 {[%clk 0:02:37]} 8. O-O {[%clk 0:03:01]}  b6 {[%clk 0:02:23]} 9. Ne5 {[%clk 0:02:59]}  Bb7 {[%clk 0:02:22]} 10. Qe2 {[%clk 0:02:57]}  a6 {[%clk 0:02:19]} 11. g4 {[%clk 0:02:54]}  Ne4 {[%clk 0:02:11]} 12. Qg2 {[%clk 0:02:51]}  f5 {[%clk 0:01:42]} 13. gxf5 {[%clk 0:02:49]}  gxf5 {[%clk 0:01:39]} 14. Kh1 {[%clk 0:02:48]}  Kh8 {[%clk 0:01:35]} 15. Ndf3 {[%clk 0:02:45]}  Nxe5 {[%clk 0:01:32]} 16. fxe5 {[%clk 0:02:42]}  e6 {[%clk 0:01:17]} 17. Bxe4 {[%clk 0:02:39]}  fxe4 {[%clk 0:01:15]} 18. Nd2 {[%clk 0:02:33]}  Rxf1+ {[%clk 0:01:13]} 19. Nxf1 {[%clk 0:02:34]}  Qh4 {[%clk 0:01:08]} 20. Ng3 {[%clk 0:02:33]}  a5 {[%clk 0:00:57]} 21. Bd2 {[%clk 0:02:32]}  Ba6 {[%clk 0:00:56]} 22. Rg1 {[%clk 0:02:32]}  Rg8 {[%clk 0:00:54]} 23. Be1 {[%clk 0:02:29]}  Qg4 {[%clk 0:00:51]} 24. h3 {[%clk 0:02:22]}  Qg6 {[%clk 0:00:48]} 25. Kh2 {[%clk 0:02:18]}  Bh6 {[%clk 0:00:45]} 26. Bd2 {[%clk 0:02:13]}  Rf8 {[%clk 0:00:40]} 27. Nh1 {[%clk 0:02:01]}  Qxg2+ {[%clk 0:00:31]} 28. Rxg2 {[%clk 0:02:02]}  Rf1 {[%clk 0:00:30]} 29. Ng3 {[%clk 0:01:50]}  Rf3 {[%clk 0:00:27]} 30. Nh5 {[%clk 0:01:49]}  Bf1 {[%clk 0:00:07]} 31. Rg1 {[%clk 0:01:45]}  Rxh3# {[%clk 0:00:07]} 0-1

[Event "January 9 Late 2024"]
[Site "https://www.chess.com"]
[Date "2024.01.09"]
[Round "8"]
[White "Martins, Bruno Andre Leite"]
[Black "Kujawski, Adam"]
[Result "1-0"]
[Board "121"]
[TimeControl "180+1"]
[WhiteFideId "1942255"]
[BlackFideId "1100920"]
[WhiteElo "2508"]
[BlackElo "2298"]
[WhiteTeam "POR"]
[BlackTeam "POL"]
[WhiteClock "0:00:55"]
[BlackClock "0:00:00"]

1. d4 {[%clk 0:02:57]}  d5 {[%clk 0:02:59]} 2. c4 {[%clk 0:02:57]}  e6 {[%clk 0:03:00]} 3. Nc3 {[%clk 0:02:57]}  Nf6 {[%clk 0:03:00]} 4. cxd5 {[%clk 0:02:56]}  exd5 {[%clk 0:02:59]} 5. Nf3 {[%clk 0:02:57]}  c6 {[%clk 0:02:59]} 6. Bg5 {[%clk 0:02:57]}  Be7 {[%clk 0:02:54]} 7. Qc2 {[%clk 0:02:57]}  Na6 {[%clk 0:02:46]} 8. e3 {[%clk 0:02:56]}  Nc7 {[%clk 0:02:46]} 9. Bd3 {[%clk 0:02:54]}  Ne6 {[%clk 0:02:45]} 10. Bh4 {[%clk 0:02:54]}  g6 {[%clk 0:02:32]} 11. Ne5 {[%clk 0:02:49]}  Ng7 {[%clk 0:02:28]} 12. f3 {[%clk 0:02:43]}  Nd7 {[%clk 0:01:54]} 13. Bg3 {[%clk 0:02:31]}  O-O {[%clk 0:01:52]} 14. O-O {[%clk 0:02:29]}  Nxe5 {[%clk 0:01:52]} 15. Bxe5 {[%clk 0:02:28]}  Bd6 {[%clk 0:01:46]} 16. Bxd6 {[%clk 0:02:28]}  Qxd6 {[%clk 0:01:46]} 17. Qf2 {[%clk 0:02:28]}  f5 {[%clk 0:01:38]} 18. Qg3 {[%clk 0:02:16]}  Qxg3 {[%clk 0:01:37]} 19. hxg3 {[%clk 0:02:17]}  Bd7 {[%clk 0:01:36]} 20. Kf2 {[%clk 0:02:13]}  Rfe8 {[%clk 0:01:33]} 21. b4 {[%clk 0:02:13]}  a5 {[%clk 0:01:31]} 22. a3 {[%clk 0:02:11]}  b5 {[%clk 0:00:59]} 23. Rfb1 {[%clk 0:01:50]}  Ra7 {[%clk 0:00:59]} 24. a4 {[%clk 0:01:45]}  axb4 {[%clk 0:00:56]} 25. Rxb4 {[%clk 0:01:46]}  Rea8 {[%clk 0:00:56]} 26. Bc2 {[%clk 0:01:44]}  Ne8 {[%clk 0:00:53]} 27. Rab1 {[%clk 0:01:41]}  c5 {[%clk 0:00:30]} 28. dxc5 {[%clk 0:01:25]}  bxa4 {[%clk 0:00:29]} 29. Nxd5 {[%clk 0:01:20]}  a3 {[%clk 0:00:19]} 30. Nb6 {[%clk 0:01:18]}  a2 {[%clk 0:00:17]} 31. Ra1 {[%clk 0:01:17]}  Rc8 {[%clk 0:00:13]} 32. Nxc8 {[%clk 0:01:15]}  Bxc8 {[%clk 0:00:13]} 33. Bb3+ {[%clk 0:01:15]}  Kf8 {[%clk 0:00:12]} 34. Rxa2 {[%clk 0:01:13]}  Rc7 {[%clk 0:00:11]} 35. Rc2 {[%clk 0:01:07]}  Bd7 {[%clk 0:00:10]} 36. Ba4 {[%clk 0:01:03]}  Bxa4 {[%clk 0:00:09]} 37. Rxa4 {[%clk 0:01:04]}  Nf6 {[%clk 0:00:08]} 38. Rd4 {[%clk 0:01:03]}  Ke7 {[%clk 0:00:08]} 39. c6 {[%clk 0:01:02]}  Ke6 {[%clk 0:00:08]} 40. Rc5 {[%clk 0:00:59]}  Ne8 {[%clk 0:00:05]} 41. g4 {[%clk 0:00:55]}  fxg4 {[%clk 0:00:04]} 42. f4 {[%clk 0:00:55]}  Nd6 {[%clk 0:00:00]} 43. Re5+ {[%clk 0:00:55]} 1-0

[Event "January 9 Late 2024"]
[Site "https://www.chess.com"]
[Date "2024.01.09"]
[Round "8"]
[White "Soderstrom, Adrian"]
[Black "Jose Iraeta, Alejandro"]
[Result "0-1"]
[Board "123"]
[TimeControl "180+1"]
[WhiteFideId "1745786"]
[BlackFideId "2226537"]
[WhiteElo "2503"]
[BlackElo "2254"]
[WhiteTeam "SWE"]
[BlackTeam "ESP"]
[WhiteClock "0:02:00"]
[BlackClock "0:01:06"]

1. e4 {[%clk 0:03:00]}  e5 {[%clk 0:02:58]} 2. Nf3 {[%clk 0:02:59]}  d5 {[%clk 0:02:58]} 3. exd5 {[%clk 0:02:58]}  e4 {[%clk 0:02:58]} 4. Qe2 {[%clk 0:02:58]}  Nf6 {[%clk 0:02:58]} 5. d3 {[%clk 0:02:50]}  Qxd5 {[%clk 0:02:57]} 6. Nbd2 {[%clk 0:02:49]}  Nc6 {[%clk 0:02:35]} 7. Nxe4 {[%clk 0:02:46]}  Be6 {[%clk 0:02:33]} 8. Nxf6+ {[%clk 0:02:45]}  gxf6 {[%clk 0:02:34]} 9. Qe4 {[%clk 0:02:45]}  O-O-O {[%clk 0:02:28]} 10. Qxd5 {[%clk 0:02:43]}  Bxd5 {[%clk 0:02:26]} 11. Be2 {[%clk 0:02:43]}  Rg8 {[%clk 0:02:23]} 12. O-O {[%clk 0:02:42]}  Nd4 {[%clk 0:01:47]} 13. Nxd4 {[%clk 0:02:35]}  Rxg2+ {[%clk 0:01:46]} 14. Kh1 {[%clk 0:02:36]}  Rxf2+ {[%clk 0:01:47]} 15. Kg1 {[%clk 0:02:29]}  Rg2+ {[%clk 0:01:42]} 16. Kh1 {[%clk 0:02:29]}  Rxe2+ {[%clk 0:01:42]} 17. Nf3 {[%clk 0:02:27]}  Bc5 {[%clk 0:01:29]} 18. c4 {[%clk 0:02:24]}  Bc6 {[%clk 0:01:26]} 19. b4 {[%clk 0:02:23]}  Bd4 {[%clk 0:01:24]} 20. Rb1 {[%clk 0:02:20]}  Rg8 {[%clk 0:01:21]} 21. Bf4 {[%clk 0:02:17]}  Rf2 {[%clk 0:01:10]} 22. Rxf2 {[%clk 0:02:10]}  Bxf2 {[%clk 0:01:11]} 23. h3 {[%clk 0:02:06]}  Bxf3+ {[%clk 0:01:07]} 24. Kh2 {[%clk 0:02:06]}  Rg2+ {[%clk 0:01:07]} 25. Kh1 {[%clk 0:02:07]}  Rg1+ {[%clk 0:01:07]} 26. Kh2 {[%clk 0:02:00]}  Rxb1 {[%clk 0:01:06]} 0-1

[Event "January 9 Late 2024"]
[Site "https://www.chess.com"]
[Date "2024.01.09"]
[Round "8"]
[White "Ferrufino, Boris"]
[Black "Mizzi, Jack"]
[Result "0-1"]
[Board "125"]
[TimeControl "180+1"]
[WhiteFideId "3300170"]
[BlackFideId "5602521"]
[WhiteElo "2214"]
[BlackElo "2490"]
[WhiteTeam "BOL"]
[BlackTeam "MLT"]
[WhiteClock "0:01:36"]
[BlackClock "0:02:04"]

1. e4 {[%clk 0:03:00]}  c6 {[%clk 0:02:59]} 2. d4 {[%clk 0:03:00]}  d5 {[%clk 0:03:00]} 3. Nc3 {[%clk 0:03:00]}  dxe4 {[%clk 0:03:00]} 4. Nxe4 {[%clk 0:03:01]}  Bf5 {[%clk 0:02:59]} 5. Ng3 {[%clk 0:03:02]}  Bg6 {[%clk 0:02:59]} 6. h4 {[%clk 0:03:02]}  h6 {[%clk 0:02:59]} 7. Nf3 {[%clk 0:03:03]}  Nd7 {[%clk 0:02:58]} 8. h5 {[%clk 0:03:04]}  Bh7 {[%clk 0:02:57]} 9. Bd3 {[%clk 0:03:04]}  Bxd3 {[%clk 0:02:57]} 10. Qxd3 {[%clk 0:03:05]}  Ngf6 {[%clk 0:02:56]} 11. Bd2 {[%clk 0:03:06]}  e6 {[%clk 0:02:55]} 12. O-O-O {[%clk 0:03:06]}  Be7 {[%clk 0:02:52]} 13. c4 {[%clk 0:03:01]}  b5 {[%clk 0:02:49]} 14. cxb5 {[%clk 0:03:00]}  cxb5 {[%clk 0:02:47]} 15. Qxb5 {[%clk 0:02:54]}  Rb8 {[%clk 0:02:46]} 16. Qa4 {[%clk 0:02:53]}  Qb6 {[%clk 0:02:42]} 17. Bc3 {[%clk 0:02:53]}  O-O {[%clk 0:02:39]} 18. Qa5 {[%clk 0:02:47]}  Qb7 {[%clk 0:02:36]} 19. Ne5 {[%clk 0:02:38]}  Nxe5 {[%clk 0:02:31]} 20. dxe5 {[%clk 0:02:38]}  Nd5 {[%clk 0:02:28]} 21. Kb1 {[%clk 0:02:38]}  Rfc8 {[%clk 0:02:26]} 22. Bd4 {[%clk 0:02:33]}  Rc4 {[%clk 0:02:24]} 23. b3 {[%clk 0:02:14]}  Rc6 {[%clk 0:02:14]} 24. Ne4 {[%clk 0:02:11]}  Ra6 {[%clk 0:02:12]} 25. Qd2 {[%clk 0:01:58]}  Nb4 {[%clk 0:02:06]} 26. Nc5 {[%clk 0:01:48]}  Bxc5 {[%clk 0:02:04]} 27. Bxc5 {[%clk 0:01:36]}  Qe4+ {[%clk 0:02:04]} 0-1

[Event "January 9 Late 2024"]
[Site "https://www.chess.com"]
[Date "2024.01.09"]
[Round "8"]
[White "Tqebuchava, Zurab"]
[Black "Reprintsev, Alexander"]
[Result "0-1"]
[Board "127"]
[TimeControl "180+1"]
[WhiteFideId "13601113"]
[BlackFideId "14100541"]
[WhiteElo "2192"]
[BlackElo "2477"]
[WhiteTeam "GEO"]
[BlackTeam "UKR"]
[WhiteClock "0:00:00"]
[BlackClock "0:02:00"]

1. e4 {[%clk 0:03:00]}  d5 {[%clk 0:02:51]} 2. exd5 {[%clk 0:02:59]}  Qxd5 {[%clk 0:02:51]} 3. Nc3 {[%clk 0:02:59]}  Qa5 {[%clk 0:02:50]} 4. g3 {[%clk 0:03:00]}  Nf6 {[%clk 0:02:50]} 5. Bg2 {[%clk 0:03:00]}  Nc6 {[%clk 0:02:50]} 6. h3 {[%clk 0:02:57]}  e5 {[%clk 0:02:48]} 7. Nge2 {[%clk 0:02:49]}  Bf5 {[%clk 0:02:46]} 8. d3 {[%clk 0:02:46]}  O-O-O {[%clk 0:02:46]} 9. Bxc6 {[%clk 0:02:31]}  bxc6 {[%clk 0:02:45]} 10. Be3 {[%clk 0:02:25]}  e4 {[%clk 0:02:39]} 11. d4 {[%clk 0:02:12]}  c5 {[%clk 0:02:38]} 12. O-O {[%clk 0:00:50]}  Bxh3 {[%clk 0:02:34]} 13. Re1 {[%clk 0:00:48]}  h5 {[%clk 0:02:34]} 14. Qd2 {[%clk 0:00:41]}  h4 {[%clk 0:02:33]} 15. Nxe4 {[%clk 0:00:36]}  Qxd2 {[%clk 0:02:24]} 16. Nxd2 {[%clk 0:00:36]}  hxg3 {[%clk 0:02:24]} 17. fxg3 {[%clk 0:00:30]}  Ng4 {[%clk 0:02:24]} 18. Nf4 {[%clk 0:00:25]}  cxd4 {[%clk 0:02:20]} 19. Bf2 {[%clk 0:00:18]}  Nxf2 {[%clk 0:02:16]} 20. Kxf2 {[%clk 0:00:17]}  Bf5 {[%clk 0:02:16]} 21. Nb3 {[%clk 0:00:16]}  Rh2+ {[%clk 0:02:12]} 22. Kf3 {[%clk 0:00:16]}  g5 {[%clk 0:02:11]} 23. Ng2 {[%clk 0:00:14]}  g4+ {[%clk 0:02:07]} 24. Kf2 {[%clk 0:00:14]}  Bxc2 {[%clk 0:02:05]} 25. Rac1 {[%clk 0:00:12]}  d3 {[%clk 0:02:01]} 26. Nd2 {[%clk 0:00:00]}  Bc5+ {[%clk 0:02:00]} 0-1